Cogmind - Beta 14 *** ADVENTURER MODE // 2025.01.12 @ 16:14:45 Player: Xight Result: Destroyed by I2-SS7(R) with Subdweller Machine Gun Performance ------------- Evolutions (0) 0 Regions Visited (2) 400 Robots Destroyed (11) 55 Value Destroyed (173) 173 Prototype IDs (0) 0 Alien Tech Used (0) 0 Bonus (-224) -224 TOTAL SCORE: 404 Bonus ------- Friendly Fire -224 Cogmind --------- Core Integrity 0/250 Matter 278/300 Energy 99/100 System Corruption 1% Temperature Cool (9) Movement Core (100) Ox1 Location -10/Subcaves Parts ------- > --- POWER (1) -------- (None) > --- PROPULSION (2) --- (None) > --- UTILITY (2) ------ Small Storage Unit > --- WEAPON (2) ------- (None) > --- INVENTORY (8) ---- Light Treads Heat Sink Light Armor Plating Scrap Shield Peak State ------------ > --- POWER ------------ Light Ion Engine > --- PROPULSION ------- Light Treads Light Treads > --- UTILITY ---------- Small Storage Unit Targeting Computer > --- WEAPON ----------- Assault Rifle Light Assault Rifle > --- INVENTORY -------- Light Ion Engine Light Treads EM Pulse Gun [Rating: 7] Favorites ----------- Power Ion Engine Engine Ion Engine Propulsion Light Treads Treads Light Treads Utility Small Storage Unit Device Seismic Detector Storage Small Storage Unit Processor Targeting Computer Weapon Assault Rifle Energy Gun EM Pulse Gun Ballistic Gun Assault Rifle Build | -11 -10 -10 ------- Run | Yrd Mat Sub Slots Evolved . | . . . Power . | . . . Propulsion . | . . . Utility . | . . . Weapon . | . . . Parts Attached 14 | 8 3 3 Power 3 | 1 1 1 Engine 3 | 1 1 1 Core . | . . . Reactor . | . . . Propulsion 2 | 2 . . Treads 2 | 2 . . Leg . | . . . Wheel . | . . . Hover . | . . . Flight . | . . . Utility 3 | 1 2 . Device 1 | . 1 . Storage 1 | 1 . . Processor 1 | . 1 . Hackware . | . . . Protection . | . . . Artifact . | . . . Weapon 6 | 4 . 2 Energy Gun 3 | 1 . 2 Energy Cannon . | . . . Ballistic Gun 3 | 3 . . Ballistic Cannon . | . . . Launcher . | . . . Special Weapon . | . . . Impact Weapon . | . . . Slashing Weapon . | . . . Piercing Weapon . | . . . Special Melee Weapon . | . . . Unidentified Prototypes . | . . . Parts Lost 7 | . . 7 Power 2 | . . 2 Propulsion 1 | . . 1 Utility 1 | . . 1 Weapon 3 | . . 3 Highest Loss Streak 7 | . . 7 To Critical Strikes . | . . . Average Slot Usage (%) 87 | . 90 72 Engine 13 | . 13 12 Treads 21 | . 23 14 Device 10 | . 10 14 Storage 14 | . 14 14 Processor 3 | . 3 . Ballistic Gun 21 | . 23 13 Peak Build Rating 7 | 6 7 6 Average Rating 6 | 5 6 5 On Entrance 3 | . 6 5 Naked Turns . | . . . Heaviest Build 15 | 11 14 15 Greatest Support 40 | 40 40 20 Greatest Overweight (x) 1 | . . 1 Average Overweight (x) . | . . . Largest Inventory Capacity 8 | 8 8 8 Average Capacity 7 | 6 8 8 Most Carried 8 | 3 8 8 Average Carried 6 | 1 7 7 Final Capacity 8 | 8 8 8 Final Carried 8 | 2 8 5 Class Distribution -------------------- 100% | Mutant Dominant Class ---------------- Mutant | -10/Materials Mutant | -10/Subcaves Resources | -11 -10 -10 ----------- Run | Yrd Mat Sub Matter Collected 426 | 246 180 . Remotely . | . . . Salvage Created 268 | . 204 64 Parts 24 | . 22 2 Haulers Intercepted . | . . . Recyclers Shooed 1 | . 1 . Parts Field Recycled . | . . . Retrieved Matter . | . . . Parts Self-Destructed . | . . . Prevented . | . . . Kills | -11 -10 -10 ------- Run | Yrd Mat Sub Combat Hostiles Destroyed 8 | . 8 . Guns 8 | . 8 . Classes Destroyed 3 | . 3 . Watcher 2 | . 2 . Swarmer 6 | . 6 . Grunt 2 | . 2 . Thug 1 | . . 1 Best Kill Streak 3 | . 3 . Combat Bots Only 3 | . 3 . Max Kills in Single Turn 1 | . 1 1 Gunslinging . | . . . Exploded . | . . . Melee . | . . . Uniques/NPCs Destroyed . | . . . Combat | -11 -10 -10 -------- Run | Yrd Mat Sub Hostile Shots Fired 80 | . 37 43 Missed 22 | . 11 11 Damage Taken 867 | . 185 682 Core 263 | . 49 214 Absorbed by Shields . | . . . Ignored by Resistances 248 | . 56 192 Regen/Repaired (Parts) 21 | . 21 . Core Remaining (%) 100 | 100 . . Volleys Fired 34 | . 25 9 Largest 2 | . 2 2 Hottest 60 | . 40 60 Shots Fired 61 | . 50 11 Gun 61 | . 50 11 Cannon . | . . . Launcher . | . . . Special . | . . . Kinetic 57 | . 50 7 Thermal 4 | . . 4 Explosive . | . . . Electromagnetic . | . . . Robot Hit Streak 9 | . 9 7 Robot Miss Streak 3 | . 3 1 Penetration Max . | . . . Secondary Targets 2 | . 1 1 Max Gunslinging Chain 1 | . 1 1 Shots Hit Robots 44 | . 34 10 Core Hits 19 | . 15 4 Critical Kills 1 | . 1 . Critical Parts Destroyed 2 | . 2 . Critical Strikes 3 | . 3 . Destroy 3 | . 3 . Melee Attacks . | . . . Impact . | . . . Slashing . | . . . Piercing . | . . . Sneak Attacks . | . . . Combat Hostiles . | . . . Follow-up Attacks . | . . . Damage Inflicted 548 | 4 398 146 Guns 544 | . 398 146 Cannons . | . . . Explosions . | . . . Melee . | . . . Ramming 4 | 4 . . Kinetic 499 | . 398 101 Thermal 45 | . . 45 Explosive . | . . . Electromagnetic . | . . . Impact . | . . . Slashing . | . . . Piercing . | . . . Highest Corruption 1 | . 1 1 Average Corruption 1 | . 1 1 Corruption Purged . | . . . Corruption Blocked . | . . . Effects 9 | . 8 1 Message Errors 2 | . 2 . Matter Fused 3 | . 3 . Heat Flow Errors 1 | . . 1 Data Loss (minor) 1 | . 1 . Data Loss (major) 1 | . 1 . Misfires 1 | . 1 . Overload Shots . | . . . Overflow Damage . | . . . Projectiles . | . . . Explosions . | . . . Melee . | . . . Knockbacks . | . . . Impact . | . . . Kinetic . | . . . Secondary . | . . . Self-Inflicted Damage . | . . . Shots . | . . . Rammed 1 | 1 . . Targets Rammed 1 | 1 . . Kicked . | . . . Crushed . | . . . Highest Temperature 174 | . 12 174 Average Temperature 57 | . 4 93 Received Heat Transfer 392 | . 39 353 Siege Activations . | . . . Robots Corrupted . | . . . Combat Hostiles . | . . . Parts Fried . | . . . Impact Corruptions . | . . . Robots Melted . | . . . Combat Hostiles . | . . . Parts Melted . | . . . Heat Transferred 100 | . . 100 Parts Sabotaged . | . . . Parts Stolen . | . . . Parts Stripped . | . . . Power Chain Reactions . | . . . Alert | -11 -10 -10 ------- Run | Yrd Mat Sub Peak Influence 176 | . 176 . Initial . | . . . Average 33 | . 37 . Maximum Alert Level . | . . . Low Security (%) 100 | 100 100 . Level 1 . | . . . Level 2 . | . . . Level 3 . | . . . Level 4 . | . . . Level 5 . | . . . High Security . | . . . Max Security . | . . . Squads Dispatched . | . . . Investigation . | . . . Extermination . | . . . Reinforcement . | . . . Assault . | . . . Garrison . | . . . Intercept . | . . . Searches Triggered . | . . . Construction Impeded . | . . . Haulers Reinforced . | . . . Active Scanning Responses . | . . . Cargo Convoy Interrupts . | . . . Stealth | -11 -10 -10 --------- Run | Yrd Mat Sub Distress Signals 2 | . 2 . Communications Jammed . | . . . Distress Signals . | . . . Times Spotted 29 | . 18 11 Peak Tracking Total 8 | . 5 8 Tactical Retreats . | . . . Traps | -11 -10 -10 ------- Run | Yrd Mat Sub Traps Triggered 3 | . 3 . Indirectly . | . . . Trap Hack Attempts . | . . . Triggered . | . . . Disarmed . | . . . Reprogrammed . | . . . Reused . | . . . Traps Extracted . | . . . Installed . | . . . Triggered . | . . . Machines | -11 -10 -10 ---------- Run | Yrd Mat Sub Machines Disabled . | . . . Max in Single Turn . | . . . Machines Repaired . | . . . Machines Dismantled . | . . . Machines Sabotaged . | . . . Overloaded Fab Kills . | . . . Hacking | -11 -10 -10 --------- Run | Yrd Mat Sub Machines Accessed 8 | . 8 . Terminals 6 | . 6 . Fabricators . | . . . Repair Stations 1 | . 1 . Recycling Units 1 | . 1 . Scanalyzers . | . . . Garrison Access . | . . . Total Hacks 29 | . 29 . Successful 20 | . 20 . Failed 9 | . 9 . Catastrophic . | . . . Database Lockouts . | . . . Manual . | . . . Terminals 25 | . 25 . Fabricators . | . . . Repair Stations 2 | . 2 . Recycling Units 2 | . 2 . Scanalyzers . | . . . Garrison Access . | . . . Terminal Hacks 17 | . 17 . Record 4 | . 4 . Branch Access Points 1 | . 1 . Emergency Access Points 1 | . 1 . Terminal Index 1 | . 1 . Recycling Unit Index 1 | . 1 . Alert Level 1 | . 1 . Unreport Threat 2 | . 2 . Dispatch Records 2 | . 2 . Maintenance Status 2 | . 2 . Hauler Manifests 1 | . 1 . Zone Layout 1 | . 1 . Fabricator Hacks . | . . . Repair Station Hacks 2 | . 2 . Scan Component 1 | . 1 . Repair 1 | . 1 . Recycling Unit Hacks 1 | . 1 . Retrieve Components 1 | . 1 . Scanalyzer . | . . . Garrison Access Hacks . | . . . Unauthorized Hacks . | . . . Terminals . | . . . Fabricators . | . . . Repair Stations . | . . . Recycling Units . | . . . Scanalyzers . | . . . Garrison Access . | . . . Data Cores Recovered . | . . . Used . | . . . Hacking Detections 7 | . 7 . Full Trace Events 1 | . 1 . Feedback Events . | . . . Feedback Blocked . | . . . Robot Schematics Acquired . | . . . Robots Built . | . . . Authchips . | . . . Time . | . . . Total Robot Build Rating . | . . . Part Schematics Acquired . | . . . Parts Built . | . . . Authchips . | . . . Time . | . . . Total Part Build Rating . | . . . Parts Repaired 1 | . 1 . Time 26 | . 26 . Parts Recycled . | . . . Recycled Matter . | . . . Retrieved Matter . | . . . Retrieved Components 1 | . 1 . Parts Scanalyzed . | . . . Part Schematics Acquired . | . . . Parts Damaged . | . . . Bothacking | -11 -10 -10 ------------ Run | Yrd Mat Sub Used RIF Installer . | . . . Robots Hacked . | . . . Non-combat . | . . . Combat . | . . . Robot Hacks Applied . | . . . Relay Couplers Released . | . . . Fabnet Peak Effective % . | . . . Robots Rewired . | . . . Allies Hacked . | . . . Hacks Repelled . | . . . Allies | -11 -10 -10 -------- Run | Yrd Mat Sub Total Allies . | . . . Largest Group . | . . . Highest-Rated Group . | . . . Highest-Rated Ally . | . . . Total Orders . | . . . Ally Attacks . | . . . Total Damage . | . . . Kills . | . . . Allies Corrupted . | . . . Allies Melted . | . . . Intel | -11 -10 -10 ------- Run | Yrd Mat Sub Robot Analysis Total . | . . . Derelict Logs Recovered . | . . . Drone Launches . | . . . Drone Recoveries . | . . . Exploration | -11 -10 -10 ------------- Run | Yrd Mat Sub Turns Passed 1626 | 158 1216 252 Spaces Moved 735 | 89 529 117 Core 10 | 4 . 6 Treads 725 | 85 529 111 Legs . | . . . Wheels . | . . . Hover . | . . . Flight . | . . . Fastest Speed 50 | 50 160 100 Average Speed 158 | 155 160 156 Slowest Speed 160 | 160 160 160 Overloaded Moves . | . . . Propulsion Burnouts . | . . . Robots Hopped . | . . . Cave-ins Triggered . | . . . Exploration Rate (%) 27 | 5 68 8 Regions Visited 2 Branch Regions 1 Pre-discovered Areas . | . . . Known Exits Taken . | . . . Unknown Exits Taken 2 | 1 1 . Scrap Searched . | . . . Spaces Dug . | . . . Terrain Destroyed . | . . . Melee . | . . . Projectile . | . . . AOE . | . . . Terrain Rammed . | . . . Walls Destroyed . | . . . Machines Disabled . | . . . Actions | -11 -10 -10 --------- Run | Yrd Mat Sub Total 1139 | 107 856 176 Wait 338 | 5 289 44 Move 733 | 88 528 117 Hop . | . . . Pick Up 14 | 4 9 1 Fast Attach 5 | 4 1 . Attach 8 | 3 2 3 Detach 2 | 1 1 . Swap 1 | 1 . . Drop 3 | . 1 2 Fire 34 | . 25 9 Melee . | . . . Ram . | . . . Kick . | . . . Crush 1 | 1 . . Escape Stasis . | . . . Rewire . | . . . Trap . | . . . Miscellaneous . | . . . Route ------- -11/Scrapyard -10/Materials (discovered 3 exits: [*Mat] / *Min / [*Sub]) -10/Subcaves History --------- Turn | Location | Event 40 | -11/Scrapyard | Discovered new exit (range 15) 159 | -11/Scrapyard | Entered Materials 296 | -10/Materials | Identified exit to Mines 311 | -10/Materials | Build established: Mutant 809 | -10/Materials | Repaired Lgt. Ion Engine 959 | -10/Materials | Discovered new exit (range 16) 1359 | -10/Materials | Discovered new exit (range 11) 1375 | -10/Materials | Entered Subcaves 1388 | -10/Subcaves | Shifting Twisted Machinery released Scrap Shield 1465 | -10/Subcaves | Shifting Twisted Machinery released Mak. Spear 1591 | -10/Subcaves | Ambushed by swarm of Subdwellers 1599 | -10/Subcaves | Ambushed by Subdweller buried in earth 1608 | -10/Subcaves | Core integrity fell below 50% 1622 | -10/Subcaves | Core integrity fell below 20% 1627 | -10/Subcaves | Destroyed by I2-SS7(R) with Subdweller Machine Gun Last Messages --------------- 01600_ 0C-A2U(R): "NAT20!" 01604_ 0C-A2U(R) destroyed. 01604_ Ion Engine destroyed. 01605_ Critical hit (Meltdown: +200). 01607_ 2X-Y9Z(R) suffers critical hit (Burn). 01612_ IS-MNX(R) suffers critical hit (Burn). 01615_ G8-NBG(g) destroyed. [Achievement: Backstab] 01615_ Switching to secondary target: 2X-Y9Z(R). C1-AHL(R) emerges from concealment. 01616_ Lgt. Ion Engine destroyed. 01616_ Assault Rifle destroyed. 01617_ IS-MNX(R) destroyed. 01617_ 2X-Y9Z(R) affixes Scrap Shield Fragment to Scrap Shield. 01620_ Lgt. Treads destroyed. 01620_ Seismic Detector destroyed. 01621_ Sml. Laser destroyed. 01622_ 2X-Y9Z(R) destroyed. 01624_ 3P-JZW(g) destroyed. 01624_ OE-2HI(R) destroyed. Map ----- +----------------------------------------------------+ | | | | | | | | | | | ?????????????????????????????????????????????????? | | ?????????????????????????????????????????????????? | | ?????????????????????????????????????????????????? | | ?????????????????????????????????????????????????? | | ?????????????????????????????????????????????????? | | ?????????????????????????????????????????????????? | | ?????????????????????????????????????????????????? | | ?????????????????????????????????????????????????? | | ?????????????????????????????????????????????????? | | ?????????????????????????????????????????????????? | | ?????????????????????????????????????????????????? | | ?????????????????????????????????????????????????? | | ????????????????????##???????????????????????????? | | ??????????????#???### #####??????????????????????? | | ??????????????# #?# ###??????###???????????? | | ??????????????#;;;# * ;;;##??#### ####??###???? | | ?????????## #; %! #??# ##?# #### | | ?????????# R %R =%& #???# ##?# ## | | ?????# R%& %= ####?# ### | | ??????# && g ! ## #?# #### | | ???????# @%[ #?# #??# | | ???????## ; * #?# ###??# | | ????????## R #;;;## ; *% #?# ##????## | | ?????????## ### ?### [ #?# ####???# # | | ??????????### ???# ### ### ##### | | ????????????## ????# #"# | | ?????????????# ????# ### /"" " # | | ????????????? ?????# ### ##?# ""# ## | | ???????????? ??????## #??#### ##??# " ##?# | | ??????????? ???????# ??????## ###??## "" #??? | | ???????????#??????? # ### ### ###### !" ##??? | | ????????????????? # # # " ##???? | | ????????????????? " #????? | | ????????????????? ### # ## " #????? | | ????????????????? ###????#??##?## ####### #????? | | ????????????????????????????????# ##?????" #????? | | ????????????????????????????????# ?????? ????? | | ????????????????????????????????# ?????? ##???? | | ????????????????????????????????# ????? #????? | | ???????????????????????????????? ???? ##????? | | ???????????????????????????????# ???? ??????? | | ??????????????????????????????? ??? ??????? | | ???????????????????????????????# ## ??? ??????? | | ???????????????????????????????##??# ?? ??????? | | ????????????????????????????????????# ? ??????? | +----------------------------------------------------+ Best States ------------- Heat Dissipation 25 Energy Generation 10 Energy Capacity 250 Matter Stores 300 Matter Capacity 300 Sight Range 16 Terrain Scan Density 10 Resistance: KI 20 Resistance: TH 20 Resistance: EX 20 Resistance: EM 20 Resistance: I 20 Resistance: S 20 Resistance: P 20 Evasion (%) 40 Targeting Accuracy 5 Recoil Reduction 2 Offensive Hacking 10 Item Schematics ----------------- None Robot Schematics ------------------ None Fabricated ------------ Nothing Alien Tech Used ----------------- None Achievements -------------- Backstab Challenges ------------ None Game ------ Seed ProjectionCompositeWheel Manual? 0 Play Time 00:35:19 Cumulative 12.7 hours Start 2025.01.12 @ 12:40:49 End 2025.01.12 @ 16:14:45 Sessions 1 Manual Loads 0 Difficulty Adventurer Special Mode None Game No. 18 Rogue 10 Adventurer 8 Explorer 0 Win Type - Total 0 Types 0/0/0/0/0/0/0/0/0 Lore% 9 Gallery% 11 Achievement% 15 Wizard Run 0 Options --------- Layout 0 ASCII 0 Keyboard 1 Movement Numpad Keybinds 0 Fullscreen 0 Font 32/SmallcapsGlow Map View 44x27 Zoom Use 51% Tactical HUD 1 Map Filters NONE Filters NONE Steam 1 RUN: 5b1bf93d-3f58-44a8-9f86-880e592d24b8